fUST/lending_fUST_20250914
["ID","MTS","AMOUNT","RATE_DAILY","PERIOD"]
[385452343,1757860240360,-500.0,0.00021916,2]
[385452344,1757860240371,-559.7811045,0.00021916,2]
[385452345,1757860240380,-500.0,0.00021916,2]
[385452346,1757860240390,-500.0,0.00021916,2]
[385452347,1757860240399,-500.0,0.00021916,2]
[385452348,1757860240408,-500.0,0.00021916,2]
[385452349,1757860240418,-500.0,0.00021916,2]
[385452350,1757860240428,-500.0,0.00021916,2]
[385452351,1757860240437,-500.0,0.00021916,2]
[385452352,1757860240446,-439.4472092,0.00021916,2]
[385452353,1757860240456,-500.0,0.00021917,2]
[385452354,1757860240465,-1105.46,0.00021917,2]
[385452355,1757860240474,-492.74291574,0.00021917,2]
[385452356,1757860240483,-486.14376906,0.00021917,2]
[385452357,1757860240496,-75.67545726,0.00021917,2]
[385452358,1757860240510,-404.32454274,0.00021917,2]
[385452359,1757860240520,-480.0,0.00021917,2]
[385452361,1757860240529,-265.99250939,0.00021917,2]
[385452362,1757860240539,-480.0,0.00021917,2]
[385452363,1757860240548,-356.5264156,0.00021917,2]
[385452364,1757860240557,-480.0,0.00021917,2]
[385452365,1757860240568,-480.0,0.00021917,2]
[385452366,1757860240579,-480.0,0.00021917,2]
[385452367,1757860240588,-480.0,0.00021917,2]
[385452368,1757860240597,-480.0,0.00021917,2]
[385452369,1757860240607,-480.0,0.00021917,2]
[385452370,1757860240616,-483.12566247,0.00021917,2]
[385452371,1757860240626,-352.45239227,0.00021917,2]
[385452372,1757860240635,-480.0,0.00021917,2]
[385452373,1757860240644,-27.66844999,0.00021917,2]
[385452374,1757860240659,-452.33155001,0.00021917,2]
[385452375,1757860240669,-480.0,0.00021917,2]
[385452376,1757860240680,-480.0,0.00021917,2]
[385452377,1757860240690,-480.0,0.00021917,2]
[385452378,1757860240699,-480.0,0.00021917,2]
[385452379,1757860240709,-480.0,0.00021917,2]
[385452380,1757860240718,-480.0,0.00021917,2]
[385452381,1757860240728,-297.58262772,0.00021917,2]
[385452382,1757860240737,-480.0,0.00021917,2]
[385452383,1757860240747,-480.0,0.00021917,2]
[385452384,1757860240756,-480.0,0.00021917,2]
[385452385,1757860240765,-480.0,0.00021917,2]
[385452386,1757860240774,-496.86,0.00021917,2]
[385452387,1757860240783,-330.25792029,0.00021917,2]
[385452388,1757860240793,-485.31297155,0.00021917,2]
[385452389,1757860240802,-484.54481576,0.00021917,2]
[385452390,1757860240811,-480.0,0.00021917,2]
[385452391,1757860240821,-480.0,0.00021917,2]
[385452392,1757860240831,-310.26578518,0.00021917,2]
[385452393,1757860240841,-480.0,0.00021917,2]
[385452394,1757860240852,-486.36543134,0.00021917,2]
[385452395,1757860240861,-480.0,0.00021917,2]
[385452396,1757860240871,-480.0,0.00021917,2]
[385452397,1757860240880,-480.0,0.00021917,2]
[385452398,1757860240890,-480.0,0.00021917,2]
[385452399,1757860240899,-500.99781637,0.00021917,2]
[385452400,1757860240909,-480.0,0.00021917,2]
[385452401,1757860240919,-480.0,0.00021917,2]
[385452402,1757860240929,-480.0,0.00021917,2]
[385452403,1757860240938,-480.0,0.00021917,2]
[385452404,1757860240948,-480.0,0.00021917,2]
[385452405,1757860240957,-480.0,0.00021917,2]
[385452406,1757860240967,-480.0,0.00021917,2]
[385452407,1757860240976,-543.6117831,0.00021917,2]
[385452408,1757860240986,-480.0,0.00021917,2]
[385452409,1757860240995,-1850.07,0.00021917,2]
[385452410,1757860241005,-480.0,0.00021917,2]
[385452411,1757860241014,-155.84432794,0.00021917,2]
[385452412,1757860241027,-324.15567206,0.00021917,2]
[385452413,1757860241036,-904.04,0.00021917,2]
[385452414,1757860241045,-480.0,0.00021917,2]
[385452415,1757860241054,-480.0,0.00021917,2]
[385452416,1757860241064,-480.0,0.00021917,2]
[385452417,1757860241074,-480.0,0.00021917,2]
[385452418,1757860241083,-602.58,0.00021917,2]
[385452419,1757860241094,-459.17285011,0.00021917,2]
[385452420,1757860241103,-670.57,0.00021917,2]
[385452421,1757860241113,-480.0,0.00021917,2]
[385452422,1757860241123,-1113.84,0.00021917,2]
[385452423,1757860241133,-480.0,0.00021917,2]
[385452424,1757860241142,-984.87,0.00021917,2]
[385452425,1757860241151,-480.0,0.00021917,2]
[385452426,1757860241160,-480.0,0.00021917,2]
[385452427,1757860241169,-480.0,0.00021917,2]
[385452428,1757860241179,-480.0,0.00021917,2]
[385452429,1757860241188,-1008.69,0.00021917,2]
[385452430,1757860241197,-480.0,0.00021917,2]
[385452431,1757860241206,-480.0,0.00021917,2]
[385452432,1757860241215,-480.0,0.00021917,2]
[385452433,1757860241225,-480.0,0.00021917,2]
[385452434,1757860241234,-801.04,0.00021917,2]
[385452435,1757860241243,-480.0,0.00021917,2]
[385452436,1757860241253,-480.0,0.00021917,2]
[385452437,1757860241262,-482.51337109,0.00021917,2]
[385452438,1757860241271,-480.0,0.00021917,2]
[385452439,1757860241281,-480.0,0.00021917,2]
[385452440,1757860241290,-480.0,0.00021917,2]
[385452441,1757860241300,-500.0,0.00021917,2]
[385452442,1757860241309,-500.0,0.00021917,2]
[385452443,1757860241319,-480.0,0.00021917,2]
[385452444,1757860241328,-137.02993331,0.00021917,2]
[385452457,1757860245582,-486.19296983,0.00021917,2]
[385452458,1757860245592,-480.0,0.00021917,2]
[385452459,1757860245601,-480.0,0.00021917,2]
[385452460,1757860245611,-148.90711117,0.00021917,2]
[385452461,1757860245623,-331.09288883,0.00021917,2]
[385452462,1757860245633,-28.11190317,0.00021917,2]
[385452463,1757860245645,-488.25182199,0.00021917,2]
[385452464,1757860245655,-480.0,0.00021917,2]
[385452465,1757860245664,-480.0,0.00021917,2]
[385452467,1757860245674,-823.58001801,0.00021917,2]
[385452492,1757860321000,911.23360462,0.000199,2]
[385452493,1757860419167,496.13683972,0.00030351,50]
[385452494,1757860517765,880.85915121,0.000199,2]
[385452505,1757860673490,292.37015638,0.0002012,2]
[385452506,1757860673516,4707.62984362,0.0002012,2]
[385452508,1757860682919,5000.0,0.0002012,2]
[385452509,1757860698089,292.38015638,0.0002012,2]
[385452510,1757860698117,1581.33120157,0.0002012,2]
[385452511,1757860707555,1420.86792264,0.0002012,2]
[385452512,1757860717713,849.91646304,0.000199,2]
[385452513,1757860723028,463.09607494,0.0002012,2]
[385452514,1757860731148,300.0,0.0002012,2]
[385452515,1757860739604,5000.0,0.0002012,2]
[385452518,1757860911297,384.79833781,0.000199,2]
[385452519,1757860911323,433.9087874,0.000199,2]
[385452520,1757860946514,4474.38429976,0.0002012,2]
[385452521,1757860955317,571.09570024,0.0002012,2]
[385452529,1757861123484,793.47091208,0.000199,2]
[385452530,1757861170989,3727.15030052,0.0002012,2]
[385452531,1757861171013,1272.84969948,0.0002012,2]
[385452532,1757861193604,888.13532554,0.0002012,2]
[385452539,1757861324634,277.0,0.00030365,120]
[385452540,1757861328211,720.97614873,0.000199,2]
[385452541,1757861344993,284.0,0.00030365,120]
[385452542,1757861350371,284.127252,0.0002012,2]
[385452543,1757861367288,5000.0,0.0002012,2]
[385452603,1757861432557,-284.127252,0.00020938,2]
[385452605,1757861432568,-15.872748,0.00021149,2]
[385452607,1757861432580,-705.10340053,0.00021149,2]
[385452609,1757861432589,-168.0,0.00021408,2]
[385452611,1757861432599,-2433.40233799,0.00021717,2]
[385452613,1757861432608,-160.0,0.00021812,2]
[385452615,1757861432617,-160.0,0.00021812,2]
[385452617,1757861432627,-217.77739939,0.00021812,2]
[385452619,1757861432637,-233.1999649,0.00021812,2]
[385452621,1757861432646,-300.0,0.00021813,2]
[385452623,1757861432655,-1200.0,0.00021813,2]
[385452625,1757861432665,-531.23217266,0.00021814,2]
[385452627,1757861432674,-306.41854964,0.00021814,2]
[385452630,1757861432686,-22432.61206647,0.00021814,2]
[385452632,1757861432697,-4558.69426465,0.00021814,2]
[385452635,1757861432719,-1644.71556312,0.00021814,2]
[385452637,1757861432730,-1838.70508551,0.00021814,2]
[385452640,1757861432741,-1227.73325423,0.00021814,2]
[385452733,1757861438425,-296.25,0.00021814,2]
[385452737,1757861438448,-17694.87121638,0.00021814,2]
[385452739,1757861438458,-16638.2850895,0.00021814,2]
[385452741,1757861438467,-480.0,0.00021815,2]
[385452743,1757861438476,-271.04968991,0.00021816,2]
[385452746,1757861438500,-39977.09063894,0.00021817,2]
[385452749,1757861438528,-2989.88799947,0.00021817,2]
[385452751,1757861438553,-1765.88588963,0.00021817,2]
[385452753,1757861438563,-450.91852861,0.00021817,2]
[385452755,1757861438573,-6956.19558176,0.00021817,2]
[385452757,1757861438584,-412.12812213,0.00021817,2]
[385452759,1757861438594,-160.0,0.00021818,2]
[385452760,1757861438603,-160.0,0.00021818,2]
[385452761,1757861438612,-97.79300871,0.00021818,2]
[385452762,1757861438623,-62.20699129,0.00021818,2]
[385452763,1757861438632,-160.0,0.00021818,2]
[385452765,1757861438641,-160.0,0.00021818,2]
[385452767,1757861438651,-434.98276541,0.00021818,2]
[385452770,1757861438844,-412.29608726,0.00021818,2]
[385452771,1757861438854,-417.15472785,0.00021818,2]
[385452772,1757861438865,-160.0,0.00021818,2]
[385452773,1757861438874,-160.0,0.00021818,2]
[385452774,1757861438883,-281.24553902,0.00021886,2]
[385452775,1757861438895,-169.67298959,0.00021886,2]
[385452776,1757861438908,-508.83844041,0.00021907,3]
[385452777,1757861438919,-1165.18155959,0.00021907,3]
[385452778,1757861438928,-837.01,0.00021907,3]
[385452779,1757861438938,-418.51,0.00021907,3]
[385452780,1757861438948,-209.25,0.00021907,3]
[385452781,1757861438958,-627.79,0.00021907,3]
[385452782,1757861438968,-321.02797627,0.00021916,2]
[385452783,1757861438979,-1000.0,0.00021916,2]
[385452784,1757861438988,-1000.0,0.00021916,2]
[385452785,1757861438997,-1000.0,0.00021916,2]
[385452786,1757861439007,-1000.0,0.00021916,2]
[385452787,1757861439015,-1000.0,0.00021916,2]
[385452788,1757861439025,-1000.0,0.00021916,2]
[385452789,1757861439034,-1000.0,0.00021916,2]
[385452790,1757861439043,-1000.0,0.00021916,2]
[385452791,1757861439052,-1000.0,0.00021916,2]
[385452792,1757861439061,-4149.26188936,0.00021917,2]
[385452793,1757861439071,-500.0,0.00021917,2]
[385452794,1757861439081,-4238.7537004,0.00021917,2]
[385452795,1757861439090,-524.38777164,0.00021917,2]
[385452796,1757861439100,-484.0511462,0.00021917,2]
[385452797,1757861439109,-480.0,0.00021917,3]
[385452798,1757861439118,-484.52279303,0.00021917,2]
[385452799,1757861439127,-1590.7340475,0.00021917,2]
[385452800,1757861439136,-480.0,0.00021917,2]
[385452801,1757861439146,-480.0,0.00021917,2]
[385452802,1757861439155,-480.0,0.00021917,2]
[385452803,1757861439164,-480.0,0.00021917,2]
[385452804,1757861439174,-480.0,0.00021917,2]
[385452805,1757861439183,-480.0,0.00021917,2]
[385452806,1757861439192,-480.0,0.00021917,2]
[385452807,1757861439201,-480.0,0.00021917,2]
[385452808,1757861439210,-480.0,0.00021917,2]
[385452809,1757861439219,-673.11,0.00021917,2]
[385452810,1757861439229,-480.0,0.00021917,2]
[385452811,1757861439237,-480.0,0.00021917,2]
[385452812,1757861439246,-480.0,0.00021917,2]
[385452813,1757861439255,-480.0,0.00021917,2]
[385452814,1757861439265,-480.0,0.00021917,2]
[385452815,1757861439274,-626.88401227,0.00021917,2]
[385452816,1757861439283,-480.0,0.00021917,2]
[385452817,1757861439292,-480.0,0.00021917,2]
[385452818,1757861439301,-480.0,0.00021917,2]
[385452819,1757861439310,-480.0,0.00021917,2]
[385452820,1757861439320,-480.0,0.00021917,2]
[385452821,1757861439329,-480.0,0.00021917,2]
[385452822,1757861439338,-480.0,0.00021917,2]
[385452823,1757861439347,-480.0,0.00021917,2]
[385452824,1757861439356,-480.0,0.00021917,2]
[385452825,1757861439365,-480.0,0.00021917,2]
[385452826,1757861439375,-974.82,0.00021917,2]
[385452827,1757861439383,-480.0,0.00021917,2]
[385452828,1757861439393,-822.3,0.00021917,2]
[385452829,1757861439402,-480.0,0.00021917,2]
[385452830,1757861439411,-480.0,0.00021917,2]
[385452831,1757861439420,-480.0,0.00021917,2]
[385452832,1757861439430,-480.0,0.00021917,2]
[385452833,1757861439439,-480.0,0.00021917,2]
[385452834,1757861439448,-480.0,0.00021917,2]
[385452835,1757861439457,-590.24,0.00021917,2]
[385452836,1757861439466,-482.69981886,0.00021917,2]
[385452837,1757861439476,-480.0,0.00021917,2]
[385452838,1757861439485,-480.0,0.00021917,2]
[385452839,1757861439495,-1000.0,0.00021917,2]
[385452840,1757861439504,-480.0,0.00021917,2]
[385452841,1757861439513,-1137.16,0.00021917,2]
[385452842,1757861439523,-480.0,0.00021917,2]
[385452843,1757861439532,-480.0,0.00021917,2]
[385452844,1757861439540,-483.56746403,0.00021917,2]
[385452845,1757861439550,-480.0,0.00021917,2]
[385452846,1757861439559,-480.0,0.00021917,2]
[385452847,1757861439569,-480.0,0.00021917,2]
[385452848,1757861439578,-480.0,0.00021917,2]
[385452849,1757861439588,-480.0,0.00021917,2]
[385452850,1757861439597,-480.0,0.00021917,2]
[385452851,1757861439606,-480.0,0.00021917,2]
[385452852,1757861439615,-480.0,0.00021917,2]
[385452853,1757861439625,-480.0,0.00021917,2]
[385452854,1757861439634,-712.05,0.00021917,2]
[385452855,1757861439643,-480.0,0.00021917,2]
[385452856,1757861439653,-391.94558077,0.00021917,2]
[385452857,1757861439662,-480.0,0.00021917,2]
[385452858,1757861439671,-480.0,0.00021917,2]
[385452859,1757861439680,-480.0,0.00021917,2]
[385452860,1757861439689,-480.0,0.00021917,2]
[385452861,1757861439698,-480.0,0.00021917,2]
[385452862,1757861439708,-480.0,0.00021917,2]
[385452863,1757861439717,-480.0,0.00021917,2]
[385452864,1757861439726,-481.95095365,0.00021917,2]
[385452865,1757861439735,-480.0,0.00021917,2]
[385452866,1757861439744,-480.0,0.00021917,2]
[385452867,1757861439754,-367.84945795,0.00021917,2]
[385452868,1757861439764,-480.0,0.00021917,2]
[385452869,1757861439774,-622.80144098,0.00021917,2]
[385452870,1757861439784,-480.0,0.00021917,2]
[385452871,1757861439793,-497.51,0.00021917,2]
[385452872,1757861439803,-480.0,0.00021917,2]
[385452873,1757861439812,-480.0,0.00021917,2]
[385452874,1757861439823,-500.0,0.00021917,2]
[385452875,1757861439832,-480.0,0.00021917,2]
[385452876,1757861439842,-480.5819029,0.00021917,2]
[385452877,1757861439851,-668.04,0.00021917,2]
[385452878,1757861439860,-480.0,0.00021917,2]
[385452879,1757861439871,-986.65,0.00021917,2]
[385452880,1757861439880,-480.0,0.00021917,2]
[385452881,1757861439890,-1030.51,0.00021917,2]
[385452882,1757861439900,-480.0,0.00021917,2]
[385452883,1757861439913,-892.61,0.00021917,2]
[385452884,1757861439922,-480.0,0.00021917,2]
[385452885,1757861439931,-480.0,0.00021917,2]
[385452886,1757861439941,-480.0,0.00021917,2]
[385452887,1757861439950,-822.49,0.00021917,2]
[385452888,1757861439960,-944.76,0.00021917,2]
[385452889,1757861439969,-480.0,0.00021917,2]
[385452890,1757861439980,-480.0,0.00021917,2]
[385452891,1757861439990,-480.0,0.00021917,2]
[385452892,1757861439999,-480.0,0.00021917,2]
[385452894,1757861440008,-496.18587711,0.00021917,2]
[385452895,1757861440017,-1941.17,0.00021917,2]
[385452896,1757861440026,-480.0,0.00021917,2]
[385452897,1757861440035,-370.04950511,0.00021917,2]
[385452898,1757861440045,-948.56,0.00021917,2]
[385452899,1757861440054,-480.0,0.00021917,2]
[385452900,1757861440063,-185.62420226,0.00021917,2]
[385452901,1757861440076,-480.0,0.00021917,2]
[385452902,1757861440085,-603.67,0.00021917,2]
[385452904,1757861440094,-480.0,0.00021917,2]
[385452905,1757861440103,-480.0,0.00021917,2]
[385452906,1757861440112,-480.0,0.00021917,2]
[385452907,1757861440122,-480.0,0.00021917,2]
[385452908,1757861440131,-1115.86,0.00021917,2]
[385452909,1757861440140,-500.0,0.00021917,2]
[385452910,1757861440149,-480.0,0.00021917,2]
[385452911,1757861440158,-480.0,0.00021917,2]
[385452912,1757861440168,-480.0,0.00021917,2]
[385452913,1757861440177,-491.91650673,0.00021917,2]
[385452914,1757861440186,-480.0,0.00021917,2]
[385452915,1757861440195,-496.57,0.00021917,2]
[385452916,1757861440205,-480.0,0.00021917,2]
[385452917,1757861440214,-1003.50289131,0.00021917,2]
[385452918,1757861440223,-480.89282975,0.00021917,2]
[385452919,1757861440232,-480.0,0.00021917,2]
[385452920,1757861440241,-480.0,0.00021917,2]
[385452921,1757861440250,-480.0,0.00021917,2]
[385452922,1757861440259,-480.0,0.00021917,2]
[385452923,1757861440268,-480.0,0.00021917,2]
[385452924,1757861440278,-480.0,0.00021917,2]
[385452925,1757861440287,-480.0,0.00021917,2]
[385452926,1757861440296,-480.0,0.00021917,2]
[385452927,1757861440304,-480.0,0.00021917,2]
[385452928,1757861440313,-485.50320233,0.00021917,2]
[385452929,1757861440324,-982.19,0.00021917,2]
[385452930,1757861440334,-480.0,0.00021917,2]
[385452931,1757861440343,-485.38389311,0.00021917,2]
[385452932,1757861440352,-584.79,0.00021917,2]
[385452933,1757861440360,-480.0,0.00021917,2]
[385452934,1757861440370,-480.0,0.00021917,2]
[385452935,1757861440379,-480.0,0.00021917,2]
[385452936,1757861440388,-480.0,0.00021917,2]
[385452937,1757861440397,-481.63240129,0.00021917,2]
[385452938,1757861440406,-951.57,0.00021917,2]
[385452939,1757861440415,-480.0,0.00021917,2]
[385452940,1757861440424,-480.0,0.00021917,2]
[385452941,1757861440434,-480.0,0.00021917,2]
[385452942,1757861440443,-480.0,0.00021917,2]
[385452943,1757861440452,-480.0,0.00021917,2]
[385452944,1757861440461,-469.88258194,0.00021917,2]
[385452946,1757861440470,-293.44889361,0.00021917,2]
[385452948,1757861440479,-480.0,0.00021917,2]
[385452950,1757861440488,-1979.93,0.00021917,2]
[385452952,1757861440497,-480.0,0.00021917,2]
[385452954,1757861440506,-480.0,0.00021917,2]
[385452955,1757861440515,-480.0,0.00021917,2]
[385452957,1757861440524,-480.0,0.00021917,2]
[385452959,1757861440533,-480.0,0.00021917,2]
[385452961,1757861440542,-480.0,0.00021917,2]
[385452963,1757861440552,-1310.17,0.00021917,2]
[385452965,1757861440561,-480.0,0.00021917,2]
[385452967,1757861440570,-1008.07,0.00021917,2]
[385452969,1757861440580,-480.0,0.00021917,2]
[385452971,1757861440589,-480.0,0.00021917,2]
[385452973,1757861440598,-480.0,0.00021917,2]
[385452975,1757861440608,-480.0,0.00021917,2]
[385452977,1757861440617,-480.0,0.00021917,2]
[385452979,1757861440626,-300.0,0.00021917,2]
[385452981,1757861440635,-480.0,0.00021917,2]
[385452983,1757861440645,-480.0,0.00021917,2]
[385452985,1757861440654,-784.97,0.00021917,2]
[385452987,1757861440664,-480.0,0.00021917,2]
[385452989,1757861440674,-480.0,0.00021917,2]
[385452992,1757861440683,-480.0,0.00021917,2]
[385452994,1757861440692,-498.12,0.00021917,2]
[385452995,1757861440701,-608.84126728,0.00021917,2]
[385452996,1757861440711,-480.0,0.00021917,2]
[385452997,1757861440720,-480.0,0.00021917,2]
[385452998,1757861440729,-480.0,0.00021917,2]
[385452999,1757861440738,-480.0,0.00021917,2]
[385453000,1757861440747,-480.0,0.00021917,2]
[385453001,1757861440756,-480.0,0.00021917,2]
[385453002,1757861440766,-483.66432483,0.00021917,2]
[385453003,1757861440775,-480.0,0.00021917,2]
[385453004,1757861440786,-396.11649269,0.00021917,2]
[385453005,1757861440796,-480.0,0.00021917,2]
[385453006,1757861440806,-480.0,0.00021917,2]
[385453007,1757861440815,-480.0,0.00021917,2]
[385453008,1757861440828,-1221.84,0.00021917,2]
[385453009,1757861440837,-480.0,0.00021917,2]
[385453010,1757861440847,-481.41228729,0.00021917,2]
[385453011,1757861440856,-480.0,0.00021917,2]
[385453012,1757861440866,-480.0,0.00021917,2]
[385453013,1757861440876,-480.0,0.00021917,2]
[385453014,1757861440886,-480.0,0.00021917,2]
[385453015,1757861440895,-494.38,0.00021917,2]
[385453016,1757861440908,-480.0,0.00021917,2]
[385453018,1757861440917,-482.39717279,0.00021917,2]
[385453019,1757861440927,-480.0,0.00021917,2]
[385453020,1757861440936,-480.0,0.00021917,2]
[385453021,1757861440945,-480.0,0.00021917,2]
[385453022,1757861440956,-480.0,0.00021917,2]
[385453023,1757861440965,-480.0,0.00021917,2]
[385453024,1757861440974,-480.0,0.00021917,2]
[385453025,1757861440985,-844.86,0.00021917,2]
[385453026,1757861440994,-581.54305175,0.00021917,2]
[385453027,1757861441003,-857.92,0.00021917,2]
[385453028,1757861441012,-480.0,0.00021917,2]
[385453029,1757861441021,-480.0,0.00021917,2]
[385453030,1757861441031,-480.0,0.00021917,2]
[385453031,1757861441040,-480.0,0.00021917,2]
[385453032,1757861441049,-780.94,0.00021917,2]
[385453033,1757861441058,-480.0,0.00021917,2]
[385453034,1757861441067,-174.01,0.00021917,2]
[385453035,1757861441080,-505.81,0.00021917,2]
[385453036,1757861441090,-497.98681952,0.00021917,2]
[385453037,1757861441099,-480.0,0.00021917,2]
[385453038,1757861441108,-480.0,0.00021917,2]
[385453039,1757861441118,-480.0,0.00021917,2]
[385453040,1757861441127,-480.0,0.00021917,2]
[385453041,1757861441136,-480.0,0.00021917,2]
[385453042,1757861441145,-480.0,0.00021917,2]
[385453043,1757861441155,-480.0,0.00021917,2]
[385453044,1757861441168,-480.0,0.00021917,2]
[385453045,1757861441177,-480.0,0.00021917,2]
[385453046,1757861441186,-734.18,0.00021917,2]
[385453047,1757861441195,-624.38,0.00021917,2]
[385453048,1757861441204,-811.47,0.00021917,2]
[385453049,1757861441213,-977.12,0.00021917,2]
[385453050,1757861441222,-1286.18,0.00021917,2]
[385453051,1757861441231,-572.91453078,0.00021917,2]
[385453052,1757861441240,-1159.89,0.00021917,2]
[385453053,1757861441249,-480.0,0.00021917,2]
[385453054,1757861441258,-480.0,0.00021917,2]
[385453055,1757861441267,-1268.92,0.00021917,2]
[385453056,1757861441277,-480.0,0.00021917,2]
[385453057,1757861441287,-480.0,0.00021917,2]
[385453058,1757861441296,-568.38,0.00021917,2]
[385453059,1757861441306,-683.46,0.00021917,2]
[385453060,1757861441315,-6123.69,0.00021917,2]
[385453061,1757861441328,-480.0,0.00021917,2]
[385453062,1757861441338,-480.0,0.00021917,2]
[385453063,1757861441347,-480.0,0.00021917,2]
[385453064,1757861441357,-13955.39,0.00021917,2]
[385453065,1757861441366,-815.89,0.00021917,2]
[385453066,1757861441375,-480.0,0.00021917,2]
[385453067,1757861441385,-480.0,0.00021917,2]
[385453068,1757861441394,-480.0,0.00021917,2]
[385453069,1757861441403,-480.0,0.00021917,2]
[385453070,1757861441413,-1568.23,0.00021917,2]
[385453071,1757861441423,-4224.97,0.00021917,2]
[385453072,1757861441432,-480.0,0.00021917,2]
[385453073,1757861441442,-480.0,0.00021917,2]
[385453074,1757861441451,-480.0,0.00021917,2]
[385453075,1757861441461,-480.0,0.00021917,2]
[385453076,1757861441470,-480.0,0.00021917,2]
[385453077,1757861441479,-1574.31,0.00021917,2]
[385453078,1757861441488,-487.67587489,0.00021917,2]
[385453079,1757861441497,-480.0,0.00021917,2]
[385453080,1757861441507,-688.79,0.00021917,2]
[385453081,1757861441515,-1617.97,0.00021917,2]
[385453082,1757861441525,-480.0,0.00021917,2]
[385453083,1757861441534,-2801.74,0.00021917,2]
[385453084,1757861441543,-176.23026373,0.00021917,2]
[385453085,1757861441553,-512.98,0.00021917,2]
[385453086,1757861441562,-637.03,0.00021917,2]
[385453087,1757861441573,-2310.62,0.00021917,2]
[385453088,1757861441582,-480.0,0.00021917,2]
[385453089,1757861441592,-480.0,0.00021917,2]
[385453090,1757861441601,-2314.91,0.00021917,2]
[385453091,1757861441610,-1228.88,0.00021917,2]
[385453092,1757861441620,-480.0,0.00021917,2]
[385453093,1757861441629,-480.0,0.00021917,2]
[385453094,1757861441639,-7025.21,0.00021917,2]
[385453095,1757861441648,-1342.25,0.00021917,2]
[385453096,1757861441657,-897.97,0.00021917,2]
[385453097,1757861441667,-488.99043806,0.00021917,2]
[385453098,1757861441677,-480.0,0.00021917,2]
[385453099,1757861441686,-480.0,0.00021917,2]
[385453100,1757861441696,-480.0,0.00021917,2]
[385453101,1757861441705,-480.0,0.00021917,2]
[385453102,1757861441715,-480.0,0.00021917,2]
[385453103,1757861441725,-2920.79,0.00021917,2]
[385453104,1757861441735,-480.0,0.00021917,2]
[385453105,1757861441744,-480.0,0.00021917,2]
[385453106,1757861441754,-3268.65,0.00021917,2]
[385453107,1757861441763,-1212.06,0.00021917,2]
[385453108,1757861441772,-480.0,0.00021917,2]
[385453109,1757861441782,-3076.98,0.00021917,2]
[385453110,1757861441792,-480.0,0.00021917,2]
[385453111,1757861441801,-597.56,0.00021917,2]
[385453112,1757861441810,-480.0,0.00021917,2]
[385453113,1757861441820,-4228.56,0.00021917,2]
[385453114,1757861441830,-480.0,0.00021917,2]
[385453115,1757861441839,-542.98,0.00021917,2]
[385453116,1757861441849,-480.0,0.00021917,2]
[385453117,1757861441859,-480.0,0.00021917,2]
[385453118,1757861441868,-971.82,0.00021917,2]
[385453119,1757861441878,-480.0,0.00021917,2]
[385453120,1757861441887,-5753.16,0.00021917,2]
[385453121,1757861441898,-480.0,0.00021917,2]
[385453122,1757861441911,-480.0,0.00021917,2]
[385453123,1757861441920,-480.0,0.00021917,2]
[385453124,1757861441930,-523.27,0.00021917,2]